[Event "*** SCC Grand Prix: Titled Tuesday Blitz"]
[Site "Chess.com"]
[Date "2020.08.25"]
[Round "5"]
[White "Kobalia"]
[Black "PSvidler"]
[Result "1-0"]
[WhiteElo "2779"]
[BlackElo "2950"]
[TimeControl "180+1"]
[EndTime "10:57:26 PDT"]
[Termination "Kobalia won by resignation"]

1. e4 {[%clk 0:03:00.9]} 1... c5 {[%clk 0:02:58.3]} 2. Nf3 {[%clk 0:03:00.7]}
2... e6 {[%clk 0:02:53.6]} 3. g3 {[%clk 0:03:00.6]} 3... Nc6 {[%clk 0:02:46.5]}
4. Bg2 {[%clk 0:02:59.2]} 4... g6 {[%clk 0:02:46.6]} 5. d4 {[%clk 0:02:58.1]}
5... d5 {[%clk 0:02:38.5]} 6. exd5 {[%clk 0:02:51.6]} 6... exd5 {[%clk
0:02:38.4]} 7. O-O {[%clk 0:02:51]} 7... cxd4 {[%clk 0:02:35.6]} 8. Nxd4 {[%clk
0:02:33.2]} 8... Bg7 {[%clk 0:01:57]} 9. Re1+ {[%clk 0:02:31.6]} 9... Nge7
{[%clk 0:01:52.8]} 10. Bg5 {[%clk 0:02:15.8]} 10... f6 {[%clk 0:01:39]} 11. Be3
{[%clk 0:01:59.4]} 11... O-O {[%clk 0:01:37.8]} 12. Nxc6 {[%clk 0:01:27.5]}
12... bxc6 {[%clk 0:01:30]} 13. Bc5 {[%clk 0:01:27]} 13... Rf7 {[%clk
0:01:05.1]} 14. c4 {[%clk 0:01:25.8]} 14... Rb8 {[%clk 0:01:04.9]} 15. Nc3
{[%clk 0:01:23.2]} 15... Bf8 {[%clk 0:00:52.2]} 16. cxd5 {[%clk 0:01:17.6]}
16... Nxd5 {[%clk 0:00:51.6]} 17. Bxf8 {[%clk 0:01:07.2]} 17... Kxf8 {[%clk
0:00:51.3]} 18. Nxd5 {[%clk 0:00:57]} 18... cxd5 {[%clk 0:00:51.5]} 19. Qxd5
{[%clk 0:00:56.9]} 19... Qxd5 {[%clk 0:00:51.1]} 20. Bxd5 {[%clk 0:00:55.8]}
20... Rd7 {[%clk 0:00:51.4]} 21. Bb3 {[%clk 0:00:50.2]} 21... Bb7 {[%clk
0:00:38]} 22. Re6 {[%clk 0:00:47.2]} 22... Kg7 {[%clk 0:00:34.2]} 23. Rae1
{[%clk 0:00:46]} 23... Rbd8 {[%clk 0:00:33.9]} 24. Re7+ {[%clk 0:00:43.7]} 24...
Kh6 {[%clk 0:00:33.3]} 25. f4 {[%clk 0:00:30.2]} 25... a5 {[%clk 0:00:32.6]} 26.
Kf2 {[%clk 0:00:23.4]} 26... Rxe7 {[%clk 0:00:27.2]} 27. Rxe7 {[%clk 0:00:22.1]}
27... Bd5 {[%clk 0:00:27.8]} 28. Bxd5 {[%clk 0:00:18.9]} 28... Rxd5 {[%clk
0:00:27.7]} 29. Ke3 {[%clk 0:00:17.4]} 29... Rd1 {[%clk 0:00:27.6]} 30. Ra7
{[%clk 0:00:16.1]} 30... Rh1 {[%clk 0:00:26.1]} 31. Rxa5 {[%clk 0:00:15.5]}
31... Rxh2 {[%clk 0:00:26.2]} 32. Rb5 {[%clk 0:00:15.5]} 32... Rg2 {[%clk
0:00:25.9]} 33. Kf3 {[%clk 0:00:15.1]} 33... Rc2 {[%clk 0:00:26.1]} 34. a4
{[%clk 0:00:15]} 34... g5 {[%clk 0:00:25.7]} 35. fxg5+ {[%clk 0:00:14.4]} 35...
fxg5 {[%clk 0:00:25.7]} 36. a5 {[%clk 0:00:14.7]} 36... Kg6 {[%clk 0:00:25.6]}
37. a6 {[%clk 0:00:14.7]} 37... Rc6 {[%clk 0:00:24.4]} 38. Ra5 {[%clk
0:00:13.9]} 38... Rc8 {[%clk 0:00:24]} 39. a7 {[%clk 0:00:14.1]} 39... Ra8
{[%clk 0:00:24]} 40. g4 {[%clk 0:00:13.9]} 40... Kf6 {[%clk 0:00:22.6]} 41. Ke4
{[%clk 0:00:13.7]} 41... Ke6 {[%clk 0:00:22.1]} 42. b4 {[%clk 0:00:13.3]} 42...
Kd6 {[%clk 0:00:21.6]} 43. Kf5 {[%clk 0:00:13.3]} 1-0

[Event "*** SCC Grand Prix: Titled Tuesday Blitz"]
[Site "Chess.com"]
[Date "2020.08.25"]
[Round "5"]
[White "Chessdemon2019"]
[Black "english_player_89"]
[Result "1/2-1/2"]
[WhiteElo "2360"]
[BlackElo "2496"]
[TimeControl "180+1"]
[EndTime "10:57:27 PDT"]
[Termination "Game drawn - insufficient material"]

1. e4 {[%clk 0:03:00.9]} 1... e5 {[%clk 0:02:59.7]} 2. Nf3 {[%clk 0:02:58.4]}
2... Nc6 {[%clk 0:02:59.9]} 3. Bc4 {[%clk 0:02:58.6]} 3... Bc5 {[%clk
0:02:59.4]} 4. c3 {[%clk 0:02:55.4]} 4... Nf6 {[%clk 0:02:59.1]} 5. d3 {[%clk
0:02:55.4]} 5... O-O {[%clk 0:02:58.8]} 6. O-O {[%clk 0:02:54.2]} 6... d6 {[%clk
0:02:58.6]} 7. h3 {[%clk 0:02:53.9]} 7... h6 {[%clk 0:02:58.3]} 8. a4 {[%clk
0:02:53.3]} 8... a5 {[%clk 0:02:56.6]} 9. Nbd2 {[%clk 0:02:52.4]} 9... Be6
{[%clk 0:02:56.1]} 10. Re1 {[%clk 0:02:52.1]} 10... Qb8 {[%clk 0:02:52.1]} 11.
Qb3 {[%clk 0:02:45.2]} 11... Bxc4 {[%clk 0:02:48.4]} 12. Nxc4 {[%clk 0:02:45.6]}
12... Qa7 {[%clk 0:02:47]} 13. Be3 {[%clk 0:02:41.3]} 13... Bxe3 {[%clk
0:02:37.8]} 14. Nxe3 {[%clk 0:02:41.3]} 14... Ne7 {[%clk 0:02:36.8]} 15. Nh4
{[%clk 0:02:25.7]} 15... Nd7 {[%clk 0:02:21.8]} 16. Nef5 {[%clk 0:02:23.3]}
16... Nxf5 {[%clk 0:02:20.6]} 17. Nxf5 {[%clk 0:02:24.1]} 17... Nc5 {[%clk
0:02:20.6]} 18. Qc2 {[%clk 0:02:19]} 18... Ne6 {[%clk 0:02:15.8]} 19. g3 {[%clk
0:02:08.6]} 19... Kh7 {[%clk 0:02:14.9]} 20. Qd2 {[%clk 0:02:07.5]} 20... Ng5
{[%clk 0:02:01.5]} 21. Kg2 {[%clk 0:02:06.2]} 21... f6 {[%clk 0:01:50.7]} 22. h4
{[%clk 0:02:02.3]} 22... Nf7 {[%clk 0:01:49.7]} 23. h5 {[%clk 0:01:59.2]} 23...
Rad8 {[%clk 0:01:44.1]} 24. f4 {[%clk 0:01:57.2]} 24... d5 {[%clk 0:01:42.7]}
25. Qf2 {[%clk 0:01:54.1]} 25... Qxf2+ {[%clk 0:01:35.2]} 26. Kxf2 {[%clk
0:01:53.4]} 26... dxe4 {[%clk 0:01:32.7]} 27. dxe4 {[%clk 0:01:51.7]} 27... Rd2+
{[%clk 0:01:32.2]} 28. Re2 {[%clk 0:01:51.8]} 28... Rfd8 {[%clk 0:01:30.6]} 29.
Re1 {[%clk 0:01:47.4]} 29... R8d3 {[%clk 0:01:25.4]} 30. Rxd2 {[%clk 0:01:47.1]}
30... Rxd2+ {[%clk 0:01:25.2]} 31. Re2 {[%clk 0:01:47.9]} 31... Rd1 {[%clk
0:01:17.5]} 32. Re1 {[%clk 0:01:48.2]} 32... Rd7 {[%clk 0:01:12.2]} 33. Ke2
{[%clk 0:01:43.1]} 33... g6 {[%clk 0:01:04]} 34. hxg6+ {[%clk 0:01:40.9]} 34...
Kxg6 {[%clk 0:01:04.9]} 35. Rd1 {[%clk 0:01:37.2]} 35... Rxd1 {[%clk 0:01:03.4]}
36. Kxd1 {[%clk 0:01:38.1]} 36... exf4 {[%clk 0:01:01.6]} 37. gxf4 {[%clk
0:01:39]} 37... Nd6 {[%clk 0:01:01.6]} 38. Ne7+ {[%clk 0:01:21.7]} 38... Kf7
{[%clk 0:00:59.5]} 39. Nd5 {[%clk 0:01:21.6]} 39... c6 {[%clk 0:00:57.4]} 40.
Nb6 {[%clk 0:01:18]} 40... Nxe4 {[%clk 0:00:56.3]} 41. Nc4 {[%clk 0:01:18.1]}
41... h5 {[%clk 0:00:48.2]} 42. Nxa5 {[%clk 0:01:17.8]} 42... Nc5 {[%clk
0:00:46.1]} 43. b4 {[%clk 0:01:14.7]} 43... Nxa4 {[%clk 0:00:45.6]} 44. Nxb7
{[%clk 0:01:15.1]} 44... Nxc3+ {[%clk 0:00:45.2]} 45. Kc2 {[%clk 0:01:15.5]}
45... h4 {[%clk 0:00:44.2]} 46. Kxc3 {[%clk 0:01:09.6]} 46... h3 {[%clk
0:00:44.2]} 47. Nd6+ {[%clk 0:01:09.7]} 47... Ke6 {[%clk 0:00:43.9]} 48. Ne4
{[%clk 0:01:10.1]} 48... Kf5 {[%clk 0:00:43.1]} 49. Nf2 {[%clk 0:01:09.1]} 49...
h2 {[%clk 0:00:41.9]} 50. Kd3 {[%clk 0:00:59.2]} 50... Kxf4 {[%clk 0:00:41.8]}
51. Ke2 {[%clk 0:00:59.5]} 51... Kg3 {[%clk 0:00:37.6]} 52. Kf1 {[%clk
0:00:59.7]} 52... Kf3 {[%clk 0:00:35.1]} 53. Nh1 {[%clk 0:00:58]} 53... Ke3
{[%clk 0:00:33.2]} 54. Kg2 {[%clk 0:00:56.5]} 54... Kd4 {[%clk 0:00:33.3]} 55.
Kxh2 {[%clk 0:00:55.3]} 55... Kc4 {[%clk 0:00:33.9]} 56. Kg3 {[%clk 0:00:54]}
56... Kxb4 {[%clk 0:00:34.5]} 57. Kf4 {[%clk 0:00:54.4]} 57... c5 {[%clk
0:00:34.6]} 58. Nf2 {[%clk 0:00:54.1]} 58... c4 {[%clk 0:00:34.5]} 59. Ne4
{[%clk 0:00:54]} 59... c3 {[%clk 0:00:24.8]} 60. Nxc3 {[%clk 0:00:51.5]} 60...
Kxc3 {[%clk 0:00:25.7]} 61. Kf5 {[%clk 0:00:49.8]} 61... Kd2 {[%clk 0:00:23.2]}
62. Kxf6 {[%clk 0:00:50.7]} 1/2-1/2

[Event "*** SCC Grand Prix: Titled Tuesday Blitz"]
[Site "Chess.com"]
[Date "2020.08.25"]
[Round "5"]
[White "alfiefischer77"]
[Black "Euge_chess"]
[Result "1-0"]
[WhiteElo "2291"]
[BlackElo "2066"]
[TimeControl "180+1"]
[EndTime "10:57:28 PDT"]
[Termination "alfiefischer77 won on time"]

1. e4 {[%clk 0:03:00.9]} 1... e5 {[%clk 0:02:59.4]} 2. Nf3 {[%clk 0:03:00.6]}
2... Nc6 {[%clk 0:02:58.3]} 3. Bb5 {[%clk 0:02:54.1]} 3... Nf6 {[%clk
0:02:57.6]} 4. Qe2 {[%clk 0:02:53.5]} 4... Bc5 {[%clk 0:02:46.8]} 5. c3 {[%clk
0:02:53.2]} 5... O-O {[%clk 0:02:43.8]} 6. d3 {[%clk 0:02:53.5]} 6... Re8 {[%clk
0:02:26.3]} 7. Bg5 {[%clk 0:02:47.9]} 7... d6 {[%clk 0:02:08.1]} 8. Nbd2 {[%clk
0:02:41.9]} 8... a6 {[%clk 0:02:05.9]} 9. Ba4 {[%clk 0:01:48.2]} 9... b5 {[%clk
0:01:58.5]} 10. Bb3 {[%clk 0:01:45.3]} 10... Be6 {[%clk 0:01:54.7]} 11. O-O
{[%clk 0:01:42]} 11... h6 {[%clk 0:01:45.9]} 12. Bh4 {[%clk 0:01:40.7]} 12...
Bb6 {[%clk 0:01:34.3]} 13. Rfd1 {[%clk 0:01:28.6]} 13... Bxb3 {[%clk 0:01:14.7]}
14. axb3 {[%clk 0:01:24.9]} 14... Qe7 {[%clk 0:00:56.6]} 15. Nf1 {[%clk
0:01:12.7]} 15... Qe6 {[%clk 0:00:56.3]} 16. Ng3 {[%clk 0:00:46.4]} 16... g5
{[%clk 0:00:49.7]} 17. Nxg5 {[%clk 0:00:45.4]} 17... hxg5 {[%clk 0:00:49.2]} 18.
Bxg5 {[%clk 0:00:45.8]} 18... Nh7 {[%clk 0:00:45.1]} 19. Bd2 {[%clk 0:00:42.4]}
19... Ne7 {[%clk 0:00:37.8]} 20. Qh5 {[%clk 0:00:37]} 20... Qg6 {[%clk
0:00:32.8]} 21. Qf3 {[%clk 0:00:36.4]} 21... Ng5 {[%clk 0:00:26]} 22. Qg4 {[%clk
0:00:32.4]} 22... Ne6 {[%clk 0:00:14.9]} 23. Qh3 {[%clk 0:00:29.5]} 23... Qh7
{[%clk 0:00:09.7]} 24. Nh5 {[%clk 0:00:23.4]} 24... Kh8 {[%clk 0:00:07]} 25. Qh4
{[%clk 0:00:16.6]} 25... Ng6 {[%clk 0:00:06.7]} 26. Qf6+ {[%clk 0:00:14.5]}
26... Kg8 {[%clk 0:00:04.5]} 27. Ng3 {[%clk 0:00:10.4]} 27... Nef4 {[%clk
0:00:04.5]} 28. Nf5 {[%clk 0:00:07.6]} 28... Re6 {[%clk 0:00:03.2]} 29. Qg5
{[%clk 0:00:06.5]} 29... Qh5 {[%clk 0:00:02.5]} 30. Qg3 {[%clk 0:00:05.9]} 30...
Qh7 {[%clk 0:00:01.5]} 31. Kf1 {[%clk 0:00:06.8]} 1-0

[Event "*** SCC Grand Prix: Titled Tuesday Blitz"]
[Site "Chess.com"]
[Date "2020.08.25"]
[Round "5"]
[White "Grootneus"]
[Black "Shuvalov"]
[Result "0-1"]
[WhiteElo "2178"]
[BlackElo "2401"]
[TimeControl "180+1"]
[EndTime "10:57:29 PDT"]
[Termination "Shuvalov won on time"]

1. e4 {[%clk 0:03:00.5]} 1... e6 {[%clk 0:02:05.2]} 2. d4 {[%clk 0:02:58.6]}
2... d5 {[%clk 0:02:04.7]} 3. Nc3 {[%clk 0:02:59.3]} 3... Bb4 {[%clk 0:02:03.6]}
4. Ne2 {[%clk 0:02:56.6]} 4... dxe4 {[%clk 0:02:03.2]} 5. a3 {[%clk 0:02:56.8]}
5... Bxc3+ {[%clk 0:02:02.8]} 6. Nxc3 {[%clk 0:02:57.7]} 6... Nc6 {[%clk
0:02:01.8]} 7. Bb5 {[%clk 0:02:56.3]} 7... Ne7 {[%clk 0:02:01.2]} 8. Be3 {[%clk
0:02:55.7]} 8... O-O {[%clk 0:01:57]} 9. Qd2 {[%clk 0:02:51.3]} 9... f5 {[%clk
0:01:54.3]} 10. O-O-O {[%clk 0:02:46.2]} 10... a6 {[%clk 0:01:53.9]} 11. Bxc6
{[%clk 0:02:38.3]} 11... Nxc6 {[%clk 0:01:54.8]} 12. f3 {[%clk 0:02:28.6]} 12...
exf3 {[%clk 0:01:53.5]} 13. gxf3 {[%clk 0:02:29.5]} 13... Na5 {[%clk 0:01:52.9]}
14. Rhg1 {[%clk 0:02:24.4]} 14... Nc4 {[%clk 0:01:50]} 15. Qg2 {[%clk
0:02:24.4]} 15... Rf7 {[%clk 0:01:48.6]} 16. Bf4 {[%clk 0:02:20.5]} 16... Qh4
{[%clk 0:01:35.4]} 17. Bg5 {[%clk 0:01:44.7]} 17... Qh5 {[%clk 0:01:32.1]} 18.
d5 {[%clk 0:01:28.8]} 18... e5 {[%clk 0:01:29.6]} 19. Qe2 {[%clk 0:01:16.2]}
19... b5 {[%clk 0:01:26.7]} 20. d6 {[%clk 0:01:15.1]} 20... cxd6 {[%clk
0:01:19.6]} 21. Nd5 {[%clk 0:01:15]} 21... Kf8 {[%clk 0:00:52]} 22. b3 {[%clk
0:01:09]} 22... Nxa3 {[%clk 0:00:50.3]} 23. Nb6 {[%clk 0:00:59.5]} 23... Bb7
{[%clk 0:00:34.8]} 24. Rxd6 {[%clk 0:00:54.8]} 24... Re8 {[%clk 0:00:30.7]} 25.
Nd7+ {[%clk 0:00:51.4]} 25... Kg8 {[%clk 0:00:21]} 26. Nf6+ {[%clk 0:00:17.2]}
26... gxf6 {[%clk 0:00:20.7]} 27. Bxf6+ {[%clk 0:00:17]} 27... Kf8 {[%clk
0:00:20.6]} 28. Qg2 {[%clk 0:00:07]} 28... Qg6 {[%clk 0:00:20.4]} 29. Qf2 {[%clk
0:00:05.8]} 29... Qh6+ {[%clk 0:00:16.8]} 30. Bg5 {[%clk 0:00:06]} 30... Qxd6
{[%clk 0:00:16.2]} 31. Qh4 {[%clk 0:00:06.2]} 31... Re6 {[%clk 0:00:15.2]} 32.
Rd1 {[%clk 0:00:04.9]} 32... Qc5 {[%clk 0:00:11.7]} 33. Rd8+ {[%clk 0:00:04.3]}
33... Kg7 {[%clk 0:00:11.7]} 0-1

[Event "*** SCC Grand Prix: Titled Tuesday Blitz"]
[Site "Chess.com"]
[Date "2020.08.25"]
[Round "5"]
[White "Kotofeyca"]
[Black "MichailovM"]
[Result "1-0"]
[WhiteElo "2339"]
[BlackElo "2476"]
[TimeControl "180+1"]
[EndTime "10:57:34 PDT"]
[Termination "Kotofeyca won by resignation"]

1. d4 {[%clk 0:03:00.9]} 1... Nf6 {[%clk 0:02:46]} 2. c4 {[%clk 0:03:00.5]} 2...
g6 {[%clk 0:02:45.9]} 3. f3 {[%clk 0:03:00.3]} 3... Bg7 {[%clk 0:02:46.2]} 4. e4
{[%clk 0:03:00.1]} 4... d6 {[%clk 0:02:46.8]} 5. Nc3 {[%clk 0:03:00.7]} 5... O-O
{[%clk 0:02:47.4]} 6. Be3 {[%clk 0:03:01.3]} 6... Nbd7 {[%clk 0:02:48]} 7. Nh3
{[%clk 0:03:01.1]} 7... c5 {[%clk 0:02:48.5]} 8. d5 {[%clk 0:03:01.6]} 8... a6
{[%clk 0:02:48.4]} 9. Qd2 {[%clk 0:02:59.9]} 9... b5 {[%clk 0:02:44.2]} 10. cxb5
{[%clk 0:02:59]} 10... Qa5 {[%clk 0:02:44.4]} 11. Nf2 {[%clk 0:02:52.5]} 11...
axb5 {[%clk 0:02:41.5]} 12. Nxb5 {[%clk 0:02:51.1]} 12... Ne8 {[%clk 0:02:31.7]}
13. Qxa5 {[%clk 0:02:37]} 13... Rxa5 {[%clk 0:02:32.6]} 14. Bd2 {[%clk
0:02:36.8]} 14... Bxb2 {[%clk 0:02:13.4]} 15. Rb1 {[%clk 0:02:21.3]} 15... Rxa2
{[%clk 0:02:08.5]} 16. Bc4 {[%clk 0:02:20.4]} 16... Ra1 {[%clk 0:02:08.3]} 17.
Ke2 {[%clk 0:02:04.3]} 17... Rxb1 {[%clk 0:02:05.2]} 18. Rxb1 {[%clk 0:02:05.2]}
18... Bg7 {[%clk 0:02:01]} 19. Na7 {[%clk 0:02:00.3]} 19... Nef6 {[%clk
0:01:55]} 20. Nc6 {[%clk 0:01:40.3]} 20... Re8 {[%clk 0:01:46.4]} 21. g4 {[%clk
0:01:31.8]} 21... h5 {[%clk 0:01:37]} 22. g5 {[%clk 0:01:31.2]} 22... Nh7 {[%clk
0:01:36]} 23. Rb3 {[%clk 0:01:24.4]} 23... Ne5 {[%clk 0:01:30.8]} 24. Bb5 {[%clk
0:01:10]} 24... Bd7 {[%clk 0:01:25.8]} 25. f4 {[%clk 0:00:59.3]} 25... Ng4
{[%clk 0:01:08.6]} 26. Nxg4 {[%clk 0:00:51.8]} 26... hxg4 {[%clk 0:01:08.6]} 27.
Ba4 {[%clk 0:00:46.1]} 27... f5 {[%clk 0:00:57.9]} 28. Rb7 {[%clk 0:00:43.2]}
28... Nf8 {[%clk 0:00:53]} 29. e5 {[%clk 0:00:40.4]} 29... dxe5 {[%clk
0:00:52.7]} 30. fxe5 {[%clk 0:00:38.8]} 30... Bxe5 {[%clk 0:00:45.2]} 31. Nxe5
{[%clk 0:00:17.7]} 31... Bxa4 {[%clk 0:00:44.7]} 32. Kd3 {[%clk 0:00:16.4]}
32... Bd1 {[%clk 0:00:33.9]} 33. Kc4 {[%clk 0:00:15.7]} 33... Be2+ {[%clk
0:00:33.4]} 34. Kxc5 {[%clk 0:00:15.2]} 34... Rc8+ {[%clk 0:00:33.6]} 35. Kd4
{[%clk 0:00:15.1]} 35... Re8 {[%clk 0:00:26.7]} 36. Bb4 {[%clk 0:00:15.1]} 36...
Nh7 {[%clk 0:00:25]} 37. Bxe7 {[%clk 0:00:14]} 37... f4 {[%clk 0:00:25.6]} 38.
Bf6 {[%clk 0:00:13.1]} 38... Nxf6 {[%clk 0:00:21.5]} 39. gxf6 {[%clk 0:00:13.3]}
39... Rd8 {[%clk 0:00:21.4]} 40. f7+ {[%clk 0:00:12.8]} 40... Kf8 {[%clk
0:00:21.8]} 41. Nxg6+ {[%clk 0:00:12.8]} 41... Kg7 {[%clk 0:00:22.3]} 42. f8=Q+
{[%clk 0:00:13.5]} 42... Kxg6 {[%clk 0:00:22.8]} 43. Qxd8 {[%clk 0:00:13.2]} 1-0

[Event "*** SCC Grand Prix: Titled Tuesday Blitz"]
[Site "Chess.com"]
[Date "2020.08.25"]
[Round "5"]
[White "CHESSMASTER759"]
[Black "topotun"]
[Result "1-0"]
[WhiteElo "2543"]
[BlackElo "2703"]
[TimeControl "180+1"]
[EndTime "10:57:37 PDT"]
[Termination "CHESSMASTER759 won by resignation"]

1. e4 {[%clk 0:02:58.7]} 1... c5 {[%clk 0:02:59.2]} 2. c3 {[%clk 0:02:58.3]}
2... d5 {[%clk 0:02:58.9]} 3. exd5 {[%clk 0:02:57.9]} 3... Qxd5 {[%clk
0:02:59.8]} 4. Nf3 {[%clk 0:02:58.5]} 4... Nf6 {[%clk 0:02:59.9]} 5. Na3 {[%clk
0:02:57.2]} 5... Nc6 {[%clk 0:02:59]} 6. Bc4 {[%clk 0:02:52.2]} 6... Qd8 {[%clk
0:02:57.5]} 7. O-O {[%clk 0:02:51.9]} 7... e6 {[%clk 0:02:56.8]} 8. Qe2 {[%clk
0:02:47.5]} 8... a6 {[%clk 0:02:45.4]} 9. Rd1 {[%clk 0:02:44.2]} 9... b5 {[%clk
0:02:37.5]} 10. Bb3 {[%clk 0:02:44.4]} 10... c4 {[%clk 0:02:29.4]} 11. Bc2
{[%clk 0:02:44.4]} 11... Bxa3 {[%clk 0:02:21]} 12. bxa3 {[%clk 0:02:45.3]} 12...
O-O {[%clk 0:02:13.5]} 13. d4 {[%clk 0:02:42.6]} 13... cxd3 {[%clk 0:02:02.8]}
14. Bxd3 {[%clk 0:02:39.2]} 14... Qc7 {[%clk 0:02:02.1]} 15. Bg5 {[%clk
0:02:33.6]} 15... Nd5 {[%clk 0:02:00.4]} 16. Rac1 {[%clk 0:02:30.1]} 16... h6
{[%clk 0:01:52.7]} 17. Bd2 {[%clk 0:02:03.1]} 17... Na5 {[%clk 0:00:41.2]} 18.
c4 {[%clk 0:01:26]} 18... Nxc4 {[%clk 0:00:38.8]} 19. Bxc4 {[%clk 0:01:25.5]}
19... bxc4 {[%clk 0:00:39.1]} 20. Rxc4 {[%clk 0:01:25.4]} 20... Qe7 {[%clk
0:00:33.4]} 21. Ne5 {[%clk 0:01:15.5]} 21... Bb7 {[%clk 0:00:31.1]} 22. Bxh6
{[%clk 0:01:04.7]} 22... gxh6 {[%clk 0:00:21.9]} 23. Qh5 {[%clk 0:01:01.8]}
23... Kh7 {[%clk 0:00:17]} 24. Rh4 {[%clk 0:00:58.7]} 24... Qf6 {[%clk
0:00:16.8]} 25. Ng4 {[%clk 0:00:54.8]} 25... Qg6 {[%clk 0:00:17.1]} 26. Qe5
{[%clk 0:00:55.1]} 26... h5 {[%clk 0:00:16]} 27. Rxh5+ {[%clk 0:00:19.2]} 27...
Qxh5 {[%clk 0:00:14.3]} 28. Qxh5+ {[%clk 0:00:20.1]} 28... Kg7 {[%clk 0:00:15]}
29. Qh6+ {[%clk 0:00:16.1]} 29... Kg8 {[%clk 0:00:14.5]} 30. Qg5+ {[%clk
0:00:15.8]} 30... Kh8 {[%clk 0:00:14.2]} 31. Rd4 {[%clk 0:00:16]} 31... Rac8
{[%clk 0:00:13.3]} 32. h3 {[%clk 0:00:08.2]} 32... f5 {[%clk 0:00:13.6]} 33. Ne5
{[%clk 0:00:05]} 33... Rc7 {[%clk 0:00:08.1]} 34. Rh4+ {[%clk 0:00:02.4]} 34...
Rh7 {[%clk 0:00:08.1]} 35. Ng6+ {[%clk 0:00:02.9]} 1-0

[Event "*** SCC Grand Prix: Titled Tuesday Blitz"]
[Site "Chess.com"]
[Date "2020.08.25"]
[Round "5"]
[White "rdclayton"]
[Black "tylityli"]
[Result "0-1"]
[WhiteElo "2324"]
[BlackElo "2204"]
[TimeControl "180+1"]
[EndTime "10:57:37 PDT"]
[Termination "tylityli won by resignation"]

1. e4 {[%clk 0:03:00.9]} 1... e5 {[%clk 0:02:48.1]} 2. Nf3 {[%clk 0:03:00.7]}
2... Nc6 {[%clk 0:02:47.8]} 3. Bb5 {[%clk 0:03:01]} 3... a6 {[%clk 0:02:47.3]}
4. Ba4 {[%clk 0:03:00.9]} 4... Nf6 {[%clk 0:02:46.1]} 5. O-O {[%clk 0:03:00.4]}
5... b5 {[%clk 0:02:45.7]} 6. Bb3 {[%clk 0:02:59.7]} 6... Be7 {[%clk 0:02:45.7]}
7. Re1 {[%clk 0:02:59.3]} 7... O-O {[%clk 0:02:45]} 8. h3 {[%clk 0:02:57.6]}
8... d6 {[%clk 0:02:44.2]} 9. c3 {[%clk 0:02:57.4]} 9... Be6 {[%clk 0:02:42.2]}
10. d4 {[%clk 0:02:14.2]} 10... Bxb3 {[%clk 0:02:40.8]} 11. Qxb3 {[%clk
0:02:12.4]} 11... exd4 {[%clk 0:02:40.3]} 12. cxd4 {[%clk 0:02:09.9]} 12... d5
{[%clk 0:02:40.6]} 13. e5 {[%clk 0:02:07.4]} 13... Ne4 {[%clk 0:02:39.9]} 14.
Nc3 {[%clk 0:02:05.6]} 14... Nxc3 {[%clk 0:02:39.2]} 15. bxc3 {[%clk 0:02:03.4]}
15... Na5 {[%clk 0:02:38]} 16. Qc2 {[%clk 0:02:00.4]} 16... Nc4 {[%clk
0:02:37.7]} 17. Bf4 {[%clk 0:01:37]} 17... h6 {[%clk 0:02:35]} 18. e6 {[%clk
0:01:34.4]} 18... Bd6 {[%clk 0:02:26.6]} 19. Qf5 {[%clk 0:00:42.3]} 19... Bxf4
{[%clk 0:02:17.1]} 20. e7 {[%clk 0:00:42.2]} 20... Qd6 {[%clk 0:02:14.8]} 21.
exf8=Q+ {[%clk 0:00:38.8]} 21... Rxf8 {[%clk 0:02:14.5]} 22. g3 {[%clk
0:00:30.2]} 22... Nd2 {[%clk 0:01:23]} 23. Nh2 {[%clk 0:00:16.2]} 23... Bg5
{[%clk 0:01:16.6]} 24. h4 {[%clk 0:00:15.9]} 24... Bd8 {[%clk 0:01:13.4]} 25.
Re3 {[%clk 0:00:12.8]} 25... Nc4 {[%clk 0:01:10.2]} 26. Re2 {[%clk 0:00:11.4]}
26... c5 {[%clk 0:01:08.2]} 27. Rae1 {[%clk 0:00:11.3]} 27... cxd4 {[%clk
0:01:06.4]} 28. cxd4 {[%clk 0:00:12.2]} 28... Bf6 {[%clk 0:00:50.2]} 29. Nf3
{[%clk 0:00:12.3]} 29... g6 {[%clk 0:00:49]} 30. Qd3 {[%clk 0:00:11.3]} 30...
Kg7 {[%clk 0:00:47.1]} 31. Kg2 {[%clk 0:00:10.8]} 31... Qb4 {[%clk 0:00:36.8]}
32. h5 {[%clk 0:00:10.5]} 32... Nd6 {[%clk 0:00:27.4]} 33. hxg6 {[%clk
0:00:04.4]} 33... fxg6 {[%clk 0:00:26.5]} 34. Ne5 {[%clk 0:00:04.6]} 34... Nf5
{[%clk 0:00:23.1]} 35. g4 {[%clk 0:00:03.6]} 35... Qxd4 {[%clk 0:00:21.2]} 36.
Qxd4 {[%clk 0:00:02.8]} 36... Nxd4 {[%clk 0:00:21]} 37. Rd2 {[%clk 0:00:03]}
37... Ne6 {[%clk 0:00:15.5]} 38. Rd3 {[%clk 0:00:01.8]} 38... Nf4+ {[%clk
0:00:15.2]} 39. Kf3 {[%clk 0:00:02.4]} 39... Bxe5 {[%clk 0:00:14.8]} 40. Rxe5
{[%clk 0:00:01.7]} 40... Nxd3+ {[%clk 0:00:14.5]} 41. Ke3 {[%clk 0:00:02.6]}
41... Nxe5 {[%clk 0:00:14.7]} 42. Kd4 {[%clk 0:00:03.1]} 42... Nxg4 {[%clk
0:00:14.8]} 43. Kxd5 {[%clk 0:00:04]} 0-1